[Event "Early-Titled-Tuesday-Blitz-December-26-2023"]
[Site "Chess.com"]
[Date "2023.12.26"]
[Round "3"]
[White "dcremisi"]
[Black "jacky72"]
[Result "1-0"]
[WhiteElo "2678"]
[BlackElo "2816"]
[TimeControl "180+1"]
[EndTime "8:30:08 PST"]
[Termination "dcremisi won by resignation"]

1. Nf3 {[%clk 0:02:48.8]} 1... Nf6 {[%clk 0:02:59.5]} 2. c4 {[%clk 0:02:49.2]}
2... g6 {[%clk 0:03:00.4]} 3. Nc3 {[%clk 0:02:49.4]} 3... Bg7 {[%clk 0:03:01.3]}
4. d4 {[%clk 0:02:48.3]} 4... O-O {[%clk 0:03:02.2]} 5. e4 {[%clk 0:02:48.7]}
5... d6 {[%clk 0:03:03.1]} 6. Be2 {[%clk 0:02:49.4]} 6... Na6 {[%clk 0:03:03.7]}
7. O-O {[%clk 0:02:49.6]} 7... e5 {[%clk 0:03:04.6]} 8. Be3 {[%clk 0:02:47.7]}
8... c6 {[%clk 0:03:04.5]} 9. dxe5 {[%clk 0:02:43.9]} 9... dxe5 {[%clk
0:03:03.6]} 10. Qxd8 {[%clk 0:02:44.4]} 10... Rxd8 {[%clk 0:03:04.3]} 11. Rfd1
{[%clk 0:02:44]} 11... Bg4 {[%clk 0:02:50.7]} 12. Rxd8+ {[%clk 0:02:36.6]} 12...
Rxd8 {[%clk 0:02:50.7]} 13. Bxa7 {[%clk 0:02:36.2]} 13... Bxf3 {[%clk
0:02:40.6]} 14. Bxf3 {[%clk 0:02:34.1]} 14... Rd2 {[%clk 0:02:40.1]} 15. b3
{[%clk 0:02:25.8]} 15... Rc2 {[%clk 0:02:31.5]} 16. Na4 {[%clk 0:02:00.6]} 16...
Bf8 {[%clk 0:02:31.4]} 17. h3 {[%clk 0:01:59.1]} 17... Ba3 {[%clk 0:02:24.8]}
18. Be3 {[%clk 0:01:50.9]} 18... Nb4 {[%clk 0:02:23.1]} 19. Bc5 {[%clk
0:01:47.2]} 19... b5 {[%clk 0:02:22.6]} 20. Nb6 {[%clk 0:01:42.3]} 20... Kg7
{[%clk 0:02:10.4]} 21. Rd1 {[%clk 0:01:40.8]} 21... Rxa2 {[%clk 0:02:03]} 22.
Rd8 {[%clk 0:01:40]} 22... Nc2 {[%clk 0:01:59]} 23. Bxa3 {[%clk 0:01:40.3]}
23... Rxa3 {[%clk 0:01:58.1]} 24. cxb5 {[%clk 0:01:40.2]} 24... cxb5 {[%clk
0:01:54.1]} 25. Nd5 {[%clk 0:01:37.3]} 25... Rxb3 {[%clk 0:01:47.9]} 26. Rd6
{[%clk 0:01:30.9]} 26... Nxd5 {[%clk 0:01:38.9]} 27. Rxd5 {[%clk 0:01:30.5]}
27... Kf6 {[%clk 0:01:33.1]} 28. Bg4 {[%clk 0:01:23.8]} 28... Nd4 {[%clk
0:01:29.2]} 29. Kh2 {[%clk 0:01:21.2]} 29... h5 {[%clk 0:01:24.3]} 30. Bd7
{[%clk 0:01:21.1]} 30... Rb2 {[%clk 0:01:16.9]} 31. f4 {[%clk 0:01:19.7]} 31...
exf4 {[%clk 0:00:45.8]} 32. Rxd4 {[%clk 0:01:18.3]} 32... f3 {[%clk 0:00:46.7]}
33. Kg3 {[%clk 0:01:09.6]} 33... fxg2 {[%clk 0:00:44.8]} 34. Kh2 {[%clk
0:01:09.5]} 34... Ke5 {[%clk 0:00:36.9]} 35. Rd5+ {[%clk 0:01:09.3]} 35... Kxe4
{[%clk 0:00:35.5]} 36. Rxb5 {[%clk 0:01:09.6]} 36... Rc2 {[%clk 0:00:29]} 37.
Rg5 {[%clk 0:01:03]} 37... Kf4 {[%clk 0:00:29.3]} 38. Rxg2 {[%clk 0:01:02.8]}
38... Rc3 {[%clk 0:00:30]} 39. Rf2+ {[%clk 0:01:00.2]} 39... Kg5 {[%clk
0:00:28]} 40. Rxf7 {[%clk 0:01:00.2]} 40... Rc2+ {[%clk 0:00:28.5]} 41. Kg1
{[%clk 0:01:00.5]} 41... Kh4 {[%clk 0:00:27.9]} 42. Rf6 {[%clk 0:00:53.9]} 42...
g5 {[%clk 0:00:27.7]} 43. Rd6 {[%clk 0:00:53.2]} 43... Rc1+ {[%clk 0:00:23.9]}
44. Kf2 {[%clk 0:00:53.6]} 44... Rc2+ {[%clk 0:00:24.6]} 45. Ke1 {[%clk
0:00:53]} 45... Rb2 {[%clk 0:00:17.4]} 46. Rd4+ {[%clk 0:00:49.6]} 46... Kg3
{[%clk 0:00:18]} 47. Rd3+ {[%clk 0:00:46.8]} 47... Kh4 {[%clk 0:00:17.8]} 48.
Kd1 {[%clk 0:00:46.6]} 48... Ra2 {[%clk 0:00:16.7]} 49. Kc1 {[%clk 0:00:46.5]}
49... Rf2 {[%clk 0:00:16.5]} 50. Kd1 {[%clk 0:00:46.8]} 50... Rb2 {[%clk
0:00:16.1]} 51. Rd4+ {[%clk 0:00:46.6]} 51... Kg3 {[%clk 0:00:16.1]} 52. Rd5
{[%clk 0:00:47.1]} 52... Kh4 {[%clk 0:00:16.4]} 53. Bf5 {[%clk 0:00:45.9]} 53...
Ra2 {[%clk 0:00:15.9]} 54. Rd3 {[%clk 0:00:44.8]} 54... Ra1+ {[%clk 0:00:15.6]}
55. Kc2 {[%clk 0:00:44.2]} 55... Ra2+ {[%clk 0:00:15.7]} 56. Kb3 {[%clk
0:00:44.2]} 56... Rf2 {[%clk 0:00:16.6]} 57. Be6 {[%clk 0:00:38.5]} 57... g4
{[%clk 0:00:16.5]} 58. hxg4 {[%clk 0:00:38.6]} 58... hxg4 {[%clk 0:00:17.4]} 59.
Rd4 {[%clk 0:00:38.9]} 59... Rg2 {[%clk 0:00:17.9]} 60. Kc4 {[%clk 0:00:39.4]}
60... Kg5 {[%clk 0:00:17.7]} 61. Kd3 {[%clk 0:00:38.1]} 61... g3 {[%clk
0:00:17.6]} 62. Ke3 {[%clk 0:00:37.2]} 62... Kf6 {[%clk 0:00:13.3]} 63. Bg4
{[%clk 0:00:34.8]} 63... Kg5 {[%clk 0:00:12.4]} 64. Bf3 {[%clk 0:00:35]} 64...
Rg1 {[%clk 0:00:11.2]} 65. Rg4+ {[%clk 0:00:35.2]} 65... Kf5 {[%clk 0:00:11.6]}
66. Rg8 {[%clk 0:00:35.6]} 66... Re1+ {[%clk 0:00:10.6]} 67. Kd2 {[%clk
0:00:35.7]} 67... Rg1 {[%clk 0:00:10.5]} 68. Ke2 {[%clk 0:00:36.2]} 68... Kf4
{[%clk 0:00:10.4]} 69. Rg4+ {[%clk 0:00:36.5]} 69... Kf5 {[%clk 0:00:11.1]} 70.
Ra4 {[%clk 0:00:35.7]} 70... Rc1 {[%clk 0:00:10.6]} 71. Be4+ {[%clk 0:00:32.5]}
71... Ke5 {[%clk 0:00:10.7]} 72. Bg2 {[%clk 0:00:30.2]} 72... Rc3 {[%clk
0:00:09.6]} 73. Rg4 {[%clk 0:00:26.1]} 73... Kf5 {[%clk 0:00:10.1]} 74. Bf3
{[%clk 0:00:23.6]} 74... Rc2+ {[%clk 0:00:09.2]} 75. Ke3 {[%clk 0:00:19.4]}
75... Rc3+ {[%clk 0:00:09.9]} 76. Ke2 {[%clk 0:00:19.7]} 76... Rc2+ {[%clk
0:00:10.7]} 77. Ke1 {[%clk 0:00:19.7]} 77... Rc3 {[%clk 0:00:09.5]} 78. Be2
{[%clk 0:00:12.7]} 78... Rc1+ {[%clk 0:00:06.5]} 79. Kd2 {[%clk 0:00:10.6]}
79... Rg1 {[%clk 0:00:07.4]} 80. Rg8 {[%clk 0:00:10.6]} 80... Kf4 {[%clk
0:00:06.8]} 81. Rf8+ {[%clk 0:00:10.7]} 81... Ke4 {[%clk 0:00:06.7]} 82. Bf3+
{[%clk 0:00:11.2]} 82... Kd4 {[%clk 0:00:07.1]} 83. Ke2 {[%clk 0:00:11.8]} 83...
Ra1 {[%clk 0:00:06.6]} 84. Rg8 {[%clk 0:00:11]} 84... Ra2+ {[%clk 0:00:05.9]}
85. Ke1 {[%clk 0:00:11.5]} 85... Ke3 {[%clk 0:00:06.8]} 86. Rxg3 {[%clk
0:00:09.3]} 86... Kf4 {[%clk 0:00:06.9]} 87. Rh3 {[%clk 0:00:09.2]} 87... Rb2
{[%clk 0:00:03.8]} 88. Bd1 {[%clk 0:00:09.5]} 88... Ra2 {[%clk 0:00:03.5]} 89.
Rf3+ {[%clk 0:00:09.9]} 89... Ke4 {[%clk 0:00:03.8]} 90. Rh3 {[%clk 0:00:10.4]}
90... Rb2 {[%clk 0:00:04.3]} 91. Be2 {[%clk 0:00:10.9]} 91... Kd4 {[%clk
0:00:04.6]} 92. Kf2 {[%clk 0:00:11.5]} 92... Ke4 {[%clk 0:00:05.1]} 93. Rh4+
{[%clk 0:00:12]} 93... Ke5 {[%clk 0:00:05.8]} 94. Ke3 {[%clk 0:00:12.6]} 94...
Rc2 {[%clk 0:00:05.6]} 95. Bd3 {[%clk 0:00:13.1]} 95... Rc5 {[%clk 0:00:06]} 96.
Rh5+ {[%clk 0:00:13.7]} 96... Kd6 {[%clk 0:00:06.7]} 97. Rh6+ {[%clk 0:00:14.6]}
97... Ke5 {[%clk 0:00:07.2]} 98. Rg6 {[%clk 0:00:15.2]} 98... Kd5 {[%clk
0:00:07.4]} 99. Be4+ {[%clk 0:00:15]} 99... Ke5 {[%clk 0:00:08.1]} 100. Rg5+
{[%clk 0:00:15.4]} 100... Kd6 {[%clk 0:00:08.7]} 101. Rg3 {[%clk 0:00:15.9]}
101... Ke5 {[%clk 0:00:09.3]} 102. Rh3 {[%clk 0:00:16.5]} 102... Kd6 {[%clk
0:00:08.8]} 103. Kd4 {[%clk 0:00:16.7]} 103... Ra5 {[%clk 0:00:07.9]} 104. Rh6+
{[%clk 0:00:16.9]} 104... Ke7 {[%clk 0:00:08.4]} 105. Bd5 {[%clk 0:00:17.5]}
105... Ra1 {[%clk 0:00:07.2]} 106. Ke5 {[%clk 0:00:17.8]} 106... Re1+ {[%clk
0:00:08.1]} 107. Be4 {[%clk 0:00:18.4]} 107... Ra1 {[%clk 0:00:08]} 108. Rh7+
{[%clk 0:00:19]} 108... Kd8 {[%clk 0:00:08.1]} 109. Kd6 {[%clk 0:00:19.5]}
109... Rd1+ {[%clk 0:00:07.7]} 110. Bd5 {[%clk 0:00:20]} 110... Rh1 {[%clk
0:00:07.2]} 111. Rxh1 {[%clk 0:00:19.1]} 1-0

[Event "Early-Titled-Tuesday-Blitz-December-26-2023"]
[Site "Chess.com"]
[Date "2023.12.26"]
[Round "3"]
[White "Virgo15"]
[Black "ahkashefi2800"]
[Result "1/2-1/2"]
[WhiteElo "2756"]
[BlackElo "2559"]
[TimeControl "180+1"]
[EndTime "8:31:00 PST"]
[Termination "Game drawn by repetition"]

1. d4 {[%clk 0:03:00.9]} 1... d5 {[%clk 0:02:59.3]} 2. Bf4 {[%clk 0:03:00.2]}
2... c6 {[%clk 0:02:54.5]} 3. e3 {[%clk 0:03:00.5]} 3... Nf6 {[%clk 0:02:52]} 4.
Nf3 {[%clk 0:02:57]} 4... Qb6 {[%clk 0:02:45.5]} 5. Qc1 {[%clk 0:02:56.5]} 5...
Bf5 {[%clk 0:02:42.1]} 6. c4 {[%clk 0:02:56.5]} 6... e6 {[%clk 0:02:42]} 7. Nc3
{[%clk 0:02:56.4]} 7... Bb4 {[%clk 0:02:27.4]} 8. Be2 {[%clk 0:02:56.6]} 8...
O-O {[%clk 0:02:27.1]} 9. O-O {[%clk 0:02:56.8]} 9... Nbd7 {[%clk 0:02:27.1]}
10. c5 {[%clk 0:02:57.3]} 10... Qd8 {[%clk 0:02:26.9]} 11. a3 {[%clk 0:02:57.8]}
11... Ba5 {[%clk 0:02:27.2]} 12. b4 {[%clk 0:02:57.9]} 12... Bc7 {[%clk
0:02:27.6]} 13. Bg3 {[%clk 0:02:58.5]} 13... Re8 {[%clk 0:02:27.5]} 14. b5
{[%clk 0:02:58.8]} 14... Bxg3 {[%clk 0:02:24.6]} 15. hxg3 {[%clk 0:02:58.7]}
15... e5 {[%clk 0:02:24.8]} 16. bxc6 {[%clk 0:02:59.2]} 16... bxc6 {[%clk
0:02:24.4]} 17. Qd1 {[%clk 0:02:52.1]} 17... Qc7 {[%clk 0:02:22.9]} 18. Qa4
{[%clk 0:02:50.8]} 18... Ne4 {[%clk 0:02:21.1]} 19. Nxe4 {[%clk 0:02:50.7]}
19... Bxe4 {[%clk 0:02:21.4]} 20. Rfd1 {[%clk 0:02:38]} 20... Bxf3 {[%clk
0:02:18.2]} 21. Bxf3 {[%clk 0:02:38]} 21... exd4 {[%clk 0:02:18.4]} 22. exd4
{[%clk 0:02:38.3]} 22... Nf8 {[%clk 0:02:18.6]} 23. Bg4 {[%clk 0:02:36.4]} 23...
g6 {[%clk 0:02:16]} 24. Rab1 {[%clk 0:02:35.6]} 24... Rab8 {[%clk 0:02:08.9]}
25. Rxb8 {[%clk 0:02:32.6]} 25... Rxb8 {[%clk 0:02:08]} 26. Re1 {[%clk 0:02:33]}
26... h5 {[%clk 0:02:07.8]} 27. Bf3 {[%clk 0:02:20.7]} 27... Ne6 {[%clk
0:02:07.1]} 28. g4 {[%clk 0:02:15.8]} 28... h4 {[%clk 0:02:07.2]} 29. Qd1 {[%clk
0:02:04.8]} 29... Qa5 {[%clk 0:02:04.7]} 30. Rxe6 {[%clk 0:01:31.8]} 30... fxe6
{[%clk 0:02:04]} 31. Qd3 {[%clk 0:01:32.4]} 31... Qe1+ {[%clk 0:01:58.1]} 32.
Kh2 {[%clk 0:01:32.4]} 32... Kf7 {[%clk 0:01:51.4]} 33. Qa6 {[%clk 0:01:28.7]}
33... Re8 {[%clk 0:01:26.5]} 34. Qxa7+ {[%clk 0:00:59.2]} 34... Re7 {[%clk
0:01:26.2]} 35. Qb8 {[%clk 0:00:59.9]} 35... Qxf2 {[%clk 0:01:24.9]} 36. Qf4+
{[%clk 0:01:00.6]} 36... Kg7 {[%clk 0:01:22.5]} 37. Qe5+ {[%clk 0:01:00.4]}
37... Kh7 {[%clk 0:01:22.2]} 38. g5 {[%clk 0:00:24.2]} 38... Qg3+ {[%clk
0:01:21.3]} 39. Qxg3 {[%clk 0:00:24.7]} 39... hxg3+ {[%clk 0:01:21.9]} 40. Kxg3
{[%clk 0:00:25.6]} 40... e5 {[%clk 0:01:22.2]} 41. dxe5 {[%clk 0:00:18.8]} 41...
Rxe5 {[%clk 0:01:22.4]} 42. Kf4 {[%clk 0:00:19.7]} 42... Re1 {[%clk 0:01:22.6]}
43. a4 {[%clk 0:00:15.3]} 43... Kg7 {[%clk 0:01:19.6]} 44. a5 {[%clk 0:00:15.2]}
44... Ra1 {[%clk 0:01:18.4]} 45. Ke5 {[%clk 0:00:15.6]} 45... Rxa5 {[%clk
0:01:13.6]} 46. Kd6 {[%clk 0:00:16.2]} 46... Ra6 {[%clk 0:01:12.6]} 47. Kc7
{[%clk 0:00:16.7]} 47... d4 {[%clk 0:01:11.5]} 48. Kb7 {[%clk 0:00:17.4]} 48...
Ra3 {[%clk 0:01:07.5]} 49. Kxc6 {[%clk 0:00:17.7]} 49... Rxf3 {[%clk 0:01:04.3]}
50. gxf3 {[%clk 0:00:10.7]} 50... d3 {[%clk 0:01:04.5]} 51. Kb7 {[%clk
0:00:11.1]} 51... d2 {[%clk 0:01:04.7]} 52. c6 {[%clk 0:00:11.8]} 52... d1=Q
{[%clk 0:01:04.4]} 53. c7 {[%clk 0:00:12.7]} 53... Qxf3+ {[%clk 0:01:04.5]} 54.
Kb8 {[%clk 0:00:12.7]} 54... Qf4 {[%clk 0:01:04.4]} 55. Ka8 {[%clk 0:00:12.4]}
55... Qf5 {[%clk 0:00:35.5]} 56. Kb8 {[%clk 0:00:11.9]} 56... Qb5+ {[%clk
0:00:35.2]} 57. Ka8 {[%clk 0:00:11]} 57... Qc6+ {[%clk 0:00:35.1]} 58. Kb8
{[%clk 0:00:11.3]} 58... Qd6 {[%clk 0:00:33.4]} 59. Ka8 {[%clk 0:00:11]} 59...
Qd5+ {[%clk 0:00:23.9]} 60. Kb8 {[%clk 0:00:11]} 60... Qe5 {[%clk 0:00:22.4]}
61. Ka8 {[%clk 0:00:11.1]} 61... Qxg5 {[%clk 0:00:22.8]} 62. c8=Q {[%clk
0:00:11.1]} 62... Qf5 {[%clk 0:00:22.5]} 63. Qc3+ {[%clk 0:00:10.7]} 63... Qf6
{[%clk 0:00:22.7]} 64. Qg3 {[%clk 0:00:10]} 64... g5 {[%clk 0:00:21.5]} 65. Qg4
{[%clk 0:00:07.7]} 65... Qa6+ {[%clk 0:00:11.9]} 66. Kb8 {[%clk 0:00:07.1]}
66... Qb6+ {[%clk 0:00:12.3]} 67. Ka8 {[%clk 0:00:07.5]} 67... Qc6+ {[%clk
0:00:12.5]} 68. Ka7 {[%clk 0:00:05.4]} 68... Kf6 {[%clk 0:00:12.5]} 69. Qh5
{[%clk 0:00:04.4]} 69... Qa4+ {[%clk 0:00:09.7]} 70. Kb6 {[%clk 0:00:03.2]}
70... Qb4+ {[%clk 0:00:09.5]} 71. Ka6 {[%clk 0:00:03.3]} 71... Qh4 {[%clk
0:00:09.4]} 72. Qe8 {[%clk 0:00:02.7]} 72... Qc4+ {[%clk 0:00:08.3]} 73. Ka5
{[%clk 0:00:02.4]} 73... Qd5+ {[%clk 0:00:07]} 74. Ka4 {[%clk 0:00:02.8]} 74...
Qd4+ {[%clk 0:00:06.8]} 75. Ka3 {[%clk 0:00:02.7]} 75... Qd3+ {[%clk 0:00:06.7]}
76. Ka2 {[%clk 0:00:02.9]} 76... g4 {[%clk 0:00:06.7]} 77. Qf8+ {[%clk
0:00:02.9]} 77... Kg5 {[%clk 0:00:06.9]} 78. Qg7+ {[%clk 0:00:03.3]} 78... Kh4
{[%clk 0:00:07.2]} 79. Qh6+ {[%clk 0:00:03.8]} 79... Kg3 {[%clk 0:00:07.2]} 80.
Qg5 {[%clk 0:00:03.8]} 80... Qe2+ {[%clk 0:00:04.2]} 81. Ka3 {[%clk 0:00:04.7]}
81... Qf3+ {[%clk 0:00:03.1]} 82. Ka2 {[%clk 0:00:03.8]} 82... Kg2 {[%clk
0:00:03.5]} 83. Qh4 {[%clk 0:00:03.5]} 83... g3 {[%clk 0:00:03.7]} 84. Qg5
{[%clk 0:00:03.5]} 84... Kg1 {[%clk 0:00:04]} 85. Qh4 {[%clk 0:00:03]} 85... g2
{[%clk 0:00:03.4]} 86. Qe1+ {[%clk 0:00:03.2]} 86... Qf1 {[%clk 0:00:03.8]} 87.
Qe4 {[%clk 0:00:02.5]} 87... Qf2+ {[%clk 0:00:04.3]} 88. Ka3 {[%clk 0:00:02.9]}
88... Kf1 {[%clk 0:00:04.3]} 89. Qb1+ {[%clk 0:00:03.2]} 89... Qe1 {[%clk
0:00:04.6]} 90. Qf5+ {[%clk 0:00:03.4]} 90... Ke2 {[%clk 0:00:03.8]} 91. Qe4+
{[%clk 0:00:03.7]} 91... Kf1 {[%clk 0:00:04.1]} 92. Qf3+ {[%clk 0:00:04.1]}
92... Kg1 {[%clk 0:00:03.1]} 93. Qg4 {[%clk 0:00:04.3]} 93... Qa1+ {[%clk
0:00:02.5]} 94. Kb4 {[%clk 0:00:04.7]} 94... Qf1 {[%clk 0:00:02.2]} 95. Ka4
{[%clk 0:00:04.3]} 95... Qe1 {[%clk 0:00:02.2]} 96. Qd4+ {[%clk 0:00:04.3]}
96... Qf2 {[%clk 0:00:02.4]} 97. Qd1+ {[%clk 0:00:04.6]} 97... Kh2 {[%clk
0:00:02.3]} 98. Qh5+ {[%clk 0:00:05.3]} 98... Kg1 {[%clk 0:00:02.3]} 99. Qd1+
{[%clk 0:00:05.5]} 99... Qf1 {[%clk 0:00:02.7]} 100. Qd4+ {[%clk 0:00:06.1]}
100... Kh1 {[%clk 0:00:02.5]} 101. Qh4+ {[%clk 0:00:06.7]} 101... Kg1 {[%clk
0:00:03]} 102. Qd4+ {[%clk 0:00:07.6]} 102... Qf2 {[%clk 0:00:03.6]} 103. Qd1+
{[%clk 0:00:07.9]} 1/2-1/2

[Event "Early-Titled-Tuesday-Blitz-December-26-2023"]
[Site "Chess.com"]
[Date "2023.12.26"]
[Round "4"]
[White "DrCeltic"]
[Black "LuisFSiles"]
[Result "1-0"]
[WhiteElo "2518"]
[BlackElo "2279"]
[TimeControl "180+1"]
[EndTime "8:33:54 PST"]
[Termination "DrCeltic won by resignation"]

1. e4 {[%clk 0:02:59.8]} 1... c5 {[%clk 0:02:58.8]} 2. Nf3 {[%clk 0:02:59.9]}
2... Nc6 {[%clk 0:02:58.1]} 3. d4 {[%clk 0:03:00.3]} 3... cxd4 {[%clk
0:02:58.2]} 4. Nxd4 {[%clk 0:03:01.2]} 4... Nf6 {[%clk 0:02:56.8]} 5. Nc3 {[%clk
0:03:01.5]} 5... e5 {[%clk 0:02:55.9]} 6. Ndb5 {[%clk 0:03:01.9]} 6... d6 {[%clk
0:02:55.3]} 7. Bg5 {[%clk 0:03:02.4]} 7... a6 {[%clk 0:02:55.2]} 8. Na3 {[%clk
0:03:02.9]} 8... b5 {[%clk 0:02:56.1]} 9. Bxf6 {[%clk 0:03:03.2]} 9... gxf6
{[%clk 0:02:56]} 10. Nd5 {[%clk 0:03:03.9]} 10... f5 {[%clk 0:02:55.8]} 11. g3
{[%clk 0:03:02.6]} 11... h5 {[%clk 0:02:55.1]} 12. Bg2 {[%clk 0:03:01.3]} 12...
f4 {[%clk 0:02:52.8]} 13. O-O {[%clk 0:02:55.9]} 13... h4 {[%clk 0:02:50.1]} 14.
gxf4 {[%clk 0:02:54.6]} 14... exf4 {[%clk 0:02:49.7]} 15. Nxf4 {[%clk
0:02:52.4]} 15... Bg7 {[%clk 0:02:45.7]} 16. e5 {[%clk 0:02:51.9]} 16... Bb7
{[%clk 0:02:26]} 17. exd6 {[%clk 0:02:43.7]} 17... Qg5 {[%clk 0:02:22.9]} 18.
Re1+ {[%clk 0:02:35.8]} 18... Kf8 {[%clk 0:02:21.6]} 19. Qf3 {[%clk 0:02:35.5]}
19... Na5 {[%clk 0:01:58.3]} 20. Ne6+ {[%clk 0:02:32.3]} 20... Kg8 {[%clk
0:01:50.7]} 21. Nxg5 {[%clk 0:02:31.7]} 21... Bxf3 {[%clk 0:01:50.6]} 22. Bxf3
{[%clk 0:02:32.6]} 1-0

[Event "Early-Titled-Tuesday-Blitz-December-26-2023"]
[Site "Chess.com"]
[Date "2023.12.26"]
[Round "4"]
[White "dcremisi"]
[Black "Bauman_Guy"]
[Result "0-1"]
[WhiteElo "2673"]
[BlackElo "2900"]
[TimeControl "180+1"]
[EndTime "8:34:47 PST"]
[Termination "Bauman_Guy won by checkmate"]

1. f3 {[%clk 0:02:44.5]} 1... d5 {[%clk 0:02:58.5]} 2. d4 {[%clk 0:02:44.7]}
2... c5 {[%clk 0:02:58.1]} 3. c3 {[%clk 0:02:44.3]} 3... Nf6 {[%clk 0:02:58]} 4.
e3 {[%clk 0:02:44.9]} 4... Nc6 {[%clk 0:02:57.1]} 5. Bb5 {[%clk 0:02:44.6]} 5...
Qb6 {[%clk 0:02:56.3]} 6. Bxc6+ {[%clk 0:02:43.6]} 6... bxc6 {[%clk 0:02:56.5]}
7. Ne2 {[%clk 0:02:43.5]} 7... Ba6 {[%clk 0:02:55.1]} 8. O-O {[%clk 0:02:40.7]}
8... e6 {[%clk 0:02:55.4]} 9. Re1 {[%clk 0:02:41.2]} 9... Bd6 {[%clk 0:02:55]}
10. Nd2 {[%clk 0:02:39.7]} 10... O-O {[%clk 0:02:53.6]} 11. Nb3 {[%clk
0:02:39.2]} 11... e5 {[%clk 0:02:47.8]} 12. dxc5 {[%clk 0:02:37.6]} 12... Bxc5
{[%clk 0:02:47.9]} 13. Nxc5 {[%clk 0:02:37.9]} 13... Qxc5 {[%clk 0:02:48.8]} 14.
Kh1 {[%clk 0:02:37.4]} 14... Rab8 {[%clk 0:02:42.3]} 15. Qc2 {[%clk 0:02:37.3]}
15... Rfe8 {[%clk 0:02:39.9]} 16. Ng3 {[%clk 0:02:36.6]} 16... g6 {[%clk
0:02:38.2]} 17. Bd2 {[%clk 0:02:35.8]} 17... h5 {[%clk 0:02:34.6]} 18. Rac1
{[%clk 0:02:23]} 18... e4 {[%clk 0:02:31.1]} 19. fxe4 {[%clk 0:02:17.3]} 19...
h4 {[%clk 0:02:27.6]} 20. Ne2 {[%clk 0:02:11.6]} 20... Nxe4 {[%clk 0:02:27.4]}
21. Nd4 {[%clk 0:02:01.3]} 21... Bd3 {[%clk 0:02:18.2]} 22. b4 {[%clk
0:01:44.8]} 22... Qc4 {[%clk 0:02:03.1]} 23. Qb2 {[%clk 0:01:43]} 23... c5
{[%clk 0:02:01.2]} 24. Nb3 {[%clk 0:01:42.8]} 24... h3 {[%clk 0:01:55.4]} 25.
Rg1 {[%clk 0:01:39.3]} 25... Nf2# {[%clk 0:01:54.7]} 0-1

[Event "Early-Titled-Tuesday-Blitz-December-26-2023"]
[Site "Chess.com"]
[Date "2023.12.26"]
[Round "4"]
[White "Druid24"]
[Black "Cheer_Down"]
[Result "1-0"]
[WhiteElo "2695"]
[BlackElo "2498"]
[TimeControl "180+1"]
[EndTime "8:34:57 PST"]
[Termination "Druid24 won by resignation"]

1. e4 {[%clk 0:03:00.9]} 1... e6 {[%clk 0:02:59.1]} 2. d3 {[%clk 0:02:59.6]}
2... d5 {[%clk 0:02:59.1]} 3. Nd2 {[%clk 0:03:00.5]} 3... Nf6 {[%clk 0:02:58.4]}
4. Ngf3 {[%clk 0:03:00.9]} 4... c5 {[%clk 0:02:58]} 5. g3 {[%clk 0:03:01.2]}
5... Nc6 {[%clk 0:02:58.2]} 6. Bg2 {[%clk 0:03:01.5]} 6... Be7 {[%clk
0:02:58.5]} 7. O-O {[%clk 0:03:01.8]} 7... O-O {[%clk 0:02:58.7]} 8. Re1 {[%clk
0:03:02.5]} 8... Qc7 {[%clk 0:02:58.4]} 9. Qe2 {[%clk 0:03:03.1]} 9... b5 {[%clk
0:02:57.8]} 10. e5 {[%clk 0:03:03.5]} 10... Nd7 {[%clk 0:02:57.4]} 11. Nf1
{[%clk 0:03:04.1]} 11... Bb7 {[%clk 0:02:56.7]} 12. h4 {[%clk 0:03:04.2]} 12...
Rfc8 {[%clk 0:02:55]} 13. Bf4 {[%clk 0:03:03.6]} 13... a5 {[%clk 0:02:50.7]} 14.
h5 {[%clk 0:03:03.6]} 14... h6 {[%clk 0:02:50.6]} 15. N1h2 {[%clk 0:03:04.1]}
15... b4 {[%clk 0:02:46.3]} 16. Ng4 {[%clk 0:03:03.9]} 16... Bf8 {[%clk
0:02:45.9]} 17. Qd2 {[%clk 0:03:03.3]} 17... Qd8 {[%clk 0:02:45.6]} 18. c3
{[%clk 0:02:17.4]} 18... a4 {[%clk 0:02:32.3]} 19. c4 {[%clk 0:02:17.7]} 19...
dxc4 {[%clk 0:02:21.6]} 20. dxc4 {[%clk 0:02:17.6]} 20... Nb6 {[%clk 0:02:22.2]}
21. Qe2 {[%clk 0:02:09.6]} 21... b3 {[%clk 0:02:09.3]} 22. Red1 {[%clk
0:02:06.3]} 22... Qe8 {[%clk 0:02:07.1]} 23. Bxh6 {[%clk 0:02:05]} 23... a3
{[%clk 0:01:59.4]} 24. Ng5 {[%clk 0:01:54.6]} 24... Rd8 {[%clk 0:01:46.6]} 25.
Qe4 {[%clk 0:01:49.2]} 25... g6 {[%clk 0:01:45.7]} 26. Nf6+ {[%clk 0:01:46.9]}
1-0

[Event "Early-Titled-Tuesday-Blitz-December-26-2023"]
[Site "Chess.com"]
[Date "2023.12.26"]
[Round "4"]
[White "GAO"]
[Black "GiorgianBarbosa"]
[Result "0-1"]
[WhiteElo "2316"]
[BlackElo "2498"]
[TimeControl "180+1"]
[EndTime "8:34:57 PST"]
[Termination "GiorgianBarbosa won by resignation"]

1. Nf3 {[%clk 0:03:00.9]} 1... Nf6 {[%clk 0:02:58.2]} 2. d4 {[%clk 0:03:01.5]}
2... e6 {[%clk 0:02:58.2]} 3. c4 {[%clk 0:03:01.3]} 3... d5 {[%clk 0:02:57.7]}
4. g3 {[%clk 0:03:01.1]} 4... Be7 {[%clk 0:02:58.1]} 5. Bg2 {[%clk 0:03:01.6]}
5... O-O {[%clk 0:02:58.5]} 6. Bf1 {[%clk 0:03:01.8]} 6... dxc4 {[%clk
0:02:55.1]} 7. Bg2 {[%clk 0:03:01.2]} 7... c5 {[%clk 0:02:54.5]} 8. O-O {[%clk
0:03:01.6]} 8... Nc6 {[%clk 0:02:53]} 9. dxc5 {[%clk 0:02:55.4]} 9... Bxc5
{[%clk 0:02:53.9]} 10. Nbd2 {[%clk 0:02:54.6]} 10... c3 {[%clk 0:02:29.4]} 11.
bxc3 {[%clk 0:02:55.5]} 11... Qc7 {[%clk 0:02:21.8]} 12. Qc2 {[%clk 0:02:52.5]}
12... b6 {[%clk 0:02:13.8]} 13. Nb3 {[%clk 0:02:52.5]} 13... Be7 {[%clk
0:02:13.6]} 14. Bf4 {[%clk 0:02:46.2]} 14... Qd7 {[%clk 0:01:50.2]} 15. Rfd1
{[%clk 0:02:39.8]} 15... Qe8 {[%clk 0:01:49.5]} 16. Nbd4 {[%clk 0:02:38.5]}
16... Bb7 {[%clk 0:01:48.3]} 17. Ne5 {[%clk 0:02:35.1]} 17... Nxd4 {[%clk
0:01:43.1]} 18. cxd4 {[%clk 0:02:34.4]} 18... Bxg2 {[%clk 0:01:44]} 19. Kxg2
{[%clk 0:02:34.6]} 19... Rc8 {[%clk 0:01:44.6]} 20. Qb3 {[%clk 0:02:16]} 20...
Nd5 {[%clk 0:01:41.1]} 21. Rac1 {[%clk 0:02:12.8]} 21... Nxf4+ {[%clk 0:01:38]}
22. gxf4 {[%clk 0:02:13.7]} 22... Bf6 {[%clk 0:01:36.8]} 23. e3 {[%clk
0:02:12.4]} 23... Bxe5 {[%clk 0:01:36.1]} 24. fxe5 {[%clk 0:02:11.7]} 24... Qe7
{[%clk 0:01:34.1]} 25. e4 {[%clk 0:01:59]} 25... Rxc1 {[%clk 0:01:30.2]} 0-1